[Event "Dutch Internet Championship Final"]
[Site "playchess.com #038132"]
[Date "2011.06.18"]
[Round "3.6"]
[White "Christov"]
[Black "kingloek"]
[Result "0-1"]
[ECO "C02"]
[WhiteElo "2515"]
[BlackElo "2883"]
[PlyCount "94"]
[EventDate "2011.06.18"]
[EventType "match (blitz)"]
[TimeControl "180+3"]

1. e4 {[%emt 0:00:01]} c5 {[%emt 0:00:01]} 2. Nf3 {[%emt 0:00:02]} e6 {[%emt 0:
00:01]} 3. c3 {[%emt 0:00:04]} d5 {[%emt 0:00:03]} 4. e5 {[%emt 0:00:03]} Nc6 {
[%emt 0:00:02]} 5. d4 {[%emt 0:00:01]} Bd7 {[%emt 0:00:02]} 6. a3 {[%emt 0:00:
01]} Nge7 {[%emt 0:00:16]} 7. Bd3 {[%emt 0:00:03]} cxd4 {[%emt 0:00:07]} 8.
cxd4 {[%emt 0:00:02]} Qb6 {[%emt 0:00:01]} 9. O-O {[%emt 0:00:24]} Nxd4 {[%emt
0:00:06]} 10. Nxd4 {[%emt 0:00:01]} Qxd4 {[%emt 0:00:02]} 11. Re1 {[%emt 0:00:
03]} Nc6 {[%emt 0:00:11]} 12. Qe2 {[%emt 0:00:32]} Be7 {[%emt 0:00:34]} 13. Nc3
{[%emt 0:00:06]} a6 {[%emt 0:00:14]} 14. Bc2 {[%emt 0:00:16]} O-O {[%emt 0:00:
11]} 15. Qh5 {[%emt 0:00:19]} g6 {[%emt 0:00:06]} 16. Qe2 {[%emt 0:00:10]} Rfc8
{[%emt 0:00:25]} 17. g3 {[%emt 0:00:03]} Qb6 {[%emt 0:00:09]} 18. h4 {[%emt 0:
00:27]} Nd4 {[%emt 0:00:07]} 19. Qe3 {[%emt 0:00:24]} Bc5 {[%emt 0:00:02]} 20.
Bd1 {[%emt 0:00:06]} Nb3 {[%emt 0:00:12]} 21. Nxd5 {[%emt 0:00:04]} Bxe3 {
[%emt 0:00:44]} 22. Nxb6 {[%emt 0:00:03]} Bxb6 {[%emt 0:00:13]} 23. Bxb3 {
[%emt 0:00:02]} Bc6 {[%emt 0:00:11]} 24. Bg5 {[%emt 0:00:06]} Bd4 {[%emt 0:00:
03]} 25. Re2 {[%emt 0:00:06]} Bf3 {[%emt 0:00:06]} 26. Ree1 {[%emt 0:00:25] .}
Bxb2 {[%emt 0:00:01]} 27. Ra2 {[%emt 0:00:02]} Bd4 {[%emt 0:00:03]} 28. Bf6 {
[%emt 0:00:06]} Rc3 {[%emt 0:00:01]} 29. Bd1 {[%emt 0:00:15]} Bd5 {[%emt 0:00:
03]} 30. Rd2 {[%emt 0:00:02]} Bc5 {[%emt 0:00:01]} 31. h5 {[%emt 0:00:02]}
Rxg3+ {[%emt 0:00:02]} 32. Kh2 {[%emt 0:00:00]} Rxa3 {[%emt 0:00:02]} 33. hxg6
{[%emt 0:00:01]} fxg6 {[%emt 0:00:01]} 34. Bg4 {[%emt 0:00:01]} Kf7 {[%emt 0:
00:01]} 35. Bg5 {[%emt 0:00:04]} h5 {[%emt 0:00:02]} 36. Bh3 {[%emt 0:00:04]}
Be7 {[%emt 0:00:09]} 37. Be3 {[%emt 0:00:06]} g5 {[%emt 0:00:05]} 38. Rc1 {
[%emt 0:00:05]} g4 {[%emt 0:00:03]} 39. Bf1 {[%emt 0:00:01]} Bc6 {[%emt 0:00:
03]} 40. Bc4 {[%emt 0:00:03]} h4 {[%emt 0:00:04]} 41. Be2 {[%emt 0:00:07]} g3+
{[%emt 0:00:02]} 42. Kg1 {[%emt 0:00:00]} Rh8 {[%emt 0:00:03]} 43. Rd3 {[%emt
0:00:04]} h3 {[%emt 0:00:05]} 44. f3 {[%emt 0:00:10]} Ra2 {[%emt 0:00:03]} 45.
Re1 {[%emt 0:00:04]} h2+ {[%emt 0:00:02]} 46. Kg2 {[%emt 0:00:01]} Rxe2+ {
[%emt 0:00:02]} 47. Rxe2 {[%emt 0:00:01]} h1=Q+ {[%emt 0:00:01] Christov geeft
op  (Lag: Av=0.61s, max=8.6s)} 0-1

[Event "Dutch Internet Championship Final"]
[Site "playchess.com #038132"]
[Date "2011.06.18"]
[Round "3.7"]
[White "Jan Smeets"]
[Black "Ivan Sokolov"]
[Result "1-0"]
[ECO "B06"]
[WhiteElo "2789"]
[BlackElo "2457"]
[PlyCount "67"]
[EventDate "2011.06.18"]
[EventType "match (blitz)"]
[TimeControl "180+3"]

1. e4 {[%emt 0:00:01]} g6 {[%emt 0:00:12]} 2. d4 {[%emt 0:00:01]} Bg7 {[%emt 0:
00:02]} 3. Nc3 {[%emt 0:00:01]} d6 {[%emt 0:00:01]} 4. Nf3 {[%emt 0:00:04]} a6
{[%emt 0:00:01]} 5. a4 {[%emt 0:00:02]} b6 {[%emt 0:00:01]} 6. Bd3 {[%emt 0:00:
06]} e6 {[%emt 0:00:02]} 7. O-O {[%emt 0:00:02]} Bb7 {[%emt 0:00:01]} 8. Ne2 {
[%emt 0:00:06]} Nd7 {[%emt 0:00:01]} 9. c3 {[%emt 0:00:07]} Ne7 {[%emt 0:00:04]
} 10. Re1 {[%emt 0:00:07]} h6 {[%emt 0:00:06]} 11. Be3 {[%emt 0:00:07]} O-O {
[%emt 0:00:21]} 12. Qd2 {[%emt 0:00:04]} Kh7 {[%emt 0:00:01]} 13. h4 {[%emt 0:
00:39]} Nf6 {[%emt 0:00:01]} 14. Ng3 {[%emt 0:00:03]} Ng4 {[%emt 0:00:03]} 15.
h5 {[%emt 0:00:10]} Nxe3 {[%emt 0:00:02]} 16. hxg6+ {[%emt 0:00:03]} fxg6 {
[%emt 0:00:04]} 17. Qxe3 {[%emt 0:00:21]} Qe8 {[%emt 0:00:08]} 18. Rad1 {[%emt
0:00:18]} Qxa4 {[%emt 0:00:09]} 19. Kf1 {[%emt 0:00:12]} Qe8 {[%emt 0:00:05]}
20. Ke2 {[%emt 0:00:01]} e5 {[%emt 0:00:30]} 21. Rh1 {[%emt 0:00:03]} Ng8 {
[%emt 0:00:02]} 22. Bc4 {[%emt 0:00:19]} Rf4 {[%emt 0:00:10]} 23. Ng5+ {[%emt
0:00:21]} Kh8 {[%emt 0:00:03]} 24. Ne6 {[%emt 0:00:25]} Qf7 {[%emt 0:00:46] '}
25. Ba2 {[%emt 0:00:21]} Rg4 {[%emt 0:00:21]} 26. Qf3 {[%emt 0:00:09]} Nf6 {
[%emt 0:00:32]} 27. Ra1 {[%emt 0:00:08]} Bxe4 {[%emt 0:00:10]} 28. Nxe4 {[%emt
0:00:03]} Rxe4+ {[%emt 0:00:02]} 29. Kf1 {[%emt 0:00:01]} Qe7 {[%emt 0:00:17]}
30. Bb1 {[%emt 0:00:01]} d5 {[%emt 0:00:06]} 31. Bxe4 {[%emt 0:00:03]} dxe4 {
[%emt 0:00:02]} 32. Qh3 {[%emt 0:00:01]} h5 {[%emt 0:00:03]} 33. dxe5 {[%emt 0:
00:01]} Ng4 {[%emt 0:00:03]} 34. Qxg4 {[%emt 0:00:01] Time  (Lag: Av=0.32s,
max=1.0s)} 1-0

[Event "Dutch Internet Championship Final"]
[Site "playchess.com #038132"]
[Date "2011.06.18"]
[Round "4.1"]
[White "Jan Smeets"]
[Black "kingloek"]
[Result "1-0"]
[ECO "B81"]
[WhiteElo "2793"]
[BlackElo "2886"]
[PlyCount "55"]
[EventDate "2011.06.18"]
[EventType "match (blitz)"]
[TimeControl "180+3"]

1. e4 {[%emt 0:00:01]} c5 {[%emt 0:00:03]} 2. Nf3 {[%emt 0:00:01]} e6 {[%emt 0:
00:02]} 3. d4 {[%emt 0:00:01]} cxd4 {[%emt 0:00:01]} 4. Nxd4 {[%emt 0:00:00]}
Nf6 {[%emt 0:00:01]} 5. Nc3 {[%emt 0:00:02]} d6 {[%emt 0:00:01]} 6. g4 {[%emt
0:00:02]} Nc6 {[%emt 0:00:03]} 7. g5 {[%emt 0:00:03]} Nd7 {[%emt 0:00:01]} 8.
Be3 {[%emt 0:00:07]} a6 {[%emt 0:00:02]} 9. h4 {[%emt 0:00:04]} Be7 {[%emt 0:
00:03]} 10. Qd2 {[%emt 0:00:22]} O-O {[%emt 0:00:06]} 11. O-O-O {[%emt 0:00:03]
} Nxd4 {[%emt 0:00:07]} 12. Qxd4 {[%emt 0:00:01]} b5 {[%emt 0:00:07]} 13. f4 {
[%emt 0:00:15]} Rb8 {[%emt 0:00:19]} 14. h5 {[%emt 0:00:05]} b4 {[%emt 0:00:17]
} 15. Ne2 {[%emt 0:00:41]} e5 {[%emt 0:00:10]} 16. Qd2 {[%emt 0:00:01]} exf4 {
[%emt 0:00:34]} 17. Bxf4 {[%emt 0:00:01]} Qa5 {[%emt 0:00:31]} 18. Kb1 {[%emt
0:00:07]} Nc5 {[%emt 0:00:02]} 19. Bg2 {[%emt 0:00:12]} Bg4 {[%emt 0:00:16]}
20. h6 {[%emt 0:00:17]} g6 {[%emt 0:00:07]} 21. Qd4 {[%emt 0:00:41]} Ne6 {
[%emt 0:00:04]} 22. Qa7 {[%emt 0:00:11]} Bxe2 {[%emt 0:00:08]} 23. Qxe7 {[%emt
0:00:02]} Nxf4 {[%emt 0:00:06]} 24. Rxd6 {[%emt 0:00:06]} Bc4 {[%emt 0:00:48]}
25. Qf6 {[%emt 0:00:08]} Qxa2+ {[%emt 0:00:05]} 26. Kc1 {[%emt 0:00:01]} Qa1+ {
[%emt 0:00:10]} 27. Kd2 {[%emt 0:00:01]} Nh5 {[%emt 0:00:05]} 28. Rxh5 {[%emt
0:00:04] Time '} 1-0

[Event "Dutch Internet Championship Final"]
[Site "playchess.com #038132"]
[Date "2011.06.18"]
[Round "4.2"]
[White "kingloek"]
[Black "Jan Smeets"]
[Result "1-0"]
[ECO "D36"]
[WhiteElo "2865"]
[BlackElo "2815"]
[PlyCount "65"]
[EventDate "2011.06.18"]
[EventType "match (blitz)"]
[TimeControl "180+3"]

1. d4 {[%emt 0:00:01]} d5 {[%emt 0:00:01]} 2. c4 {[%emt 0:00:01]} c6 {[%emt 0:
00:00]} 3. Nf3 {[%emt 0:00:01]} Nf6 {[%emt 0:00:01]} 4. Nc3 {[%emt 0:00:01]} e6
{[%emt 0:00:01]} 5. Bg5 {[%emt 0:00:03]} Nbd7 {[%emt 0:00:01]} 6. cxd5 {[%emt
0:00:03]} exd5 {[%emt 0:00:02]} 7. e3 {[%emt 0:00:04]} Be7 {[%emt 0:00:04]} 8.
Qc2 {[%emt 0:00:01]} Nh5 {[%emt 0:00:08]} 9. Bxe7 {[%emt 0:00:03]} Qxe7 {[%emt
0:00:00]} 10. O-O-O {[%emt 0:00:01]} Nhf6 {[%emt 0:00:17]} 11. Bd3 {[%emt 0:00:
05]} a5 {[%emt 0:00:22]} 12. Kb1 {[%emt 0:00:03]} Nb6 {[%emt 0:00:09]} 13. h3 {
[%emt 0:00:12]} O-O {[%emt 0:00:16]} 14. g4 {[%emt 0:00:04]} Re8 {[%emt 0:00:
05]} 15. Ne5 {[%emt 0:00:06]} g6 {[%emt 0:00:16]} 16. f4 {[%emt 0:00:04]} Nfd7
{[%emt 0:00:30]} 17. Rhe1 {[%emt 0:00:07]} Qh4 {[%emt 0:00:09]} 18. Qg2 {[%emt
0:00:16]} a4 {[%emt 0:00:10]} 19. Nf3 {[%emt 0:00:10]} Qe7 {[%emt 0:00:02]} 20.
e4 {[%emt 0:00:06]} dxe4 {[%emt 0:00:03]} 21. Nxe4 {[%emt 0:00:15]} Qf8 {[%emt
0:00:23]} 22. a3 {[%emt 0:00:28]} Nd5 {[%emt 0:00:03]} 23. Qd2 {[%emt 0:00:05]}
b5 {[%emt 0:00:02]} 24. Ne5 {[%emt 0:00:06]} b4 {[%emt 0:00:19]} 25. axb4 {
[%emt 0:00:10]} a3 {[%emt 0:00:03]} 26. Bc4 {[%emt 0:00:29]} N7b6 {[%emt 0:00:
36]} 27. b3 {[%emt 0:00:38] .} a2+ {[%emt 0:00:14]} 28. Ka1 {[%emt 0:00:06]}
Ba6 {[%emt 0:00:01]} 29. Rc1 {[%emt 0:00:11]} Ra7 {[%emt 0:00:04]} 30. f5 {
[%emt 0:00:04]} Nxb4 {[%emt 0:00:07]} 31. Nf6+ {[%emt 0:00:05]} Kh8 {[%emt 0:
00:01]} 32. Nxf7+ {[%emt 0:00:09]} Rxf7 {[%emt 0:00:02]} 33. Rxe8 {[%emt 0:00:
01] Jan Smeets resigns  (Lag: Av=0.67s, max=1.1s)} 1-0

[Event "Dutch Internet Championship Final"]
[Site "playchess.com #038132"]
[Date "2011.06.18"]
[Round "4.3"]
[White "Jan Smeets"]
[Black "kingloek"]
[Result "0-1"]
[ECO "B81"]
[WhiteElo "2800"]
[BlackElo "2879"]
[PlyCount "88"]
[EventDate "2011.06.18"]
[EventType "match (blitz)"]
[TimeControl "180+3"]

1. e4 {[%emt 0:00:01]} c5 {[%emt 0:00:01]} 2. Nf3 {[%emt 0:00:02]} e6 {[%emt 0:
00:01]} 3. d4 {[%emt 0:00:00]} cxd4 {[%emt 0:00:01]} 4. Nxd4 {[%emt 0:00:00]}
Nf6 {[%emt 0:00:01]} 5. Nc3 {[%emt 0:00:00]} d6 {[%emt 0:00:01]} 6. g4 {[%emt
0:00:01]} h6 {[%emt 0:00:01]} 7. h4 {[%emt 0:00:06]} Nc6 {[%emt 0:00:03]} 8.
Rg1 {[%emt 0:00:10]} h5 {[%emt 0:00:01]} 9. gxh5 {[%emt 0:00:04]} Nxh5 {[%emt
0:00:01]} 10. Bg5 {[%emt 0:00:07]} Nf6 {[%emt 0:00:04]} 11. Qd2 {[%emt 0:00:11]
} a6 {[%emt 0:00:09]} 12. O-O-O {[%emt 0:00:08]} Bd7 {[%emt 0:00:02]} 13. Be2 {
[%emt 0:00:22]} Qb6 {[%emt 0:00:18]} 14. Nb3 {[%emt 0:00:01]} Rc8 {[%emt 0:00:
11]} 15. f4 {[%emt 0:00:10]} Qc7 {[%emt 0:00:10]} 16. h5 {[%emt 0:00:23]} Be7 {
[%emt 0:00:09]} 17. Kb1 {[%emt 0:00:15]} b5 {[%emt 0:00:03]} 18. Bf3 {[%emt 0:
00:30]} b4 {[%emt 0:00:41]} 19. Ne2 {[%emt 0:00:02]} e5 {[%emt 0:00:06]} 20.
Ng3 {[%emt 0:00:35]} exf4 {[%emt 0:00:13]} 21. Bxf4 {[%emt 0:00:14]} Ne5 {
[%emt 0:00:02]} 22. Bxe5 {[%emt 0:00:07]} dxe5 {[%emt 0:00:02]} 23. Nf5 {[%emt
0:00:00]} Bxf5 {[%emt 0:00:15]} 24. exf5 {[%emt 0:00:00]} Kf8 {[%emt 0:00:18]}
25. Qg2 {[%emt 0:00:14]} Rh7 {[%emt 0:00:07]} 26. h6 {[%emt 0:00:22]} gxh6 {
[%emt 0:00:04]} 27. Bb7 {[%emt 0:00:01]} Rd8 {[%emt 0:00:16] '} 28. Rxd8+ {
[%emt 0:00:02]} Qxd8 {[%emt 0:00:09]} 29. Bxa6 {[%emt 0:00:00]} h5 {[%emt 0:00:
01]} 30. Qe2 {[%emt 0:00:12]} Qc7 {[%emt 0:00:33]} 31. Rh1 {[%emt 0:00:05]} h4
{[%emt 0:00:01]} 32. Bd3 {[%emt 0:00:03]} Qc6 {[%emt 0:00:05]} 33. Re1 {[%emt
0:00:02]} e4 {[%emt 0:00:04]} 34. Bb5 {[%emt 0:00:01]} Qd5 {[%emt 0:00:05]} 35.
Bc4 {[%emt 0:00:02]} Qe5 {[%emt 0:00:02]} 36. Nd2 {[%emt 0:00:04]} h3 {[%emt 0:
00:01]} 37. Rh1 {[%emt 0:00:04]} h2 {[%emt 0:00:05]} 38. Nf3 {[%emt 0:00:02]}
Qc5 {[%emt 0:00:02]} 39. Nd2 {[%emt 0:00:05]} Qg1+ {[%emt 0:00:07]} 40. Qf1 {
[%emt 0:00:03]} Qxf1+ {[%emt 0:00:02]} 41. Nxf1 {[%emt 0:00:05]} Bd6 {[%emt 0:
00:03]} 42. a4 {[%emt 0:00:02]} bxa3 {[%emt 0:00:02]} 43. bxa3 {[%emt 0:00:00]}
Ng4 {[%emt 0:00:01]} 44. Nxh2 {[%emt 0:00:04]} Rxh2 {[%emt 0:00:02] Jan Smeets
resigns  (Lag: Av=0.58s, max=2.4s)} 0-1

[Event "Dutch Internet Championship Final"]
[Site "playchess.com #038132"]
[Date "2011.06.18"]
[Round "4.4"]
[White "kingloek"]
[Black "Jan Smeets"]
[Result "0-1"]
[ECO "D15"]
[WhiteElo "2893"]
[BlackElo "2787"]
[PlyCount "68"]
[EventDate "2011.06.18"]
[EventType "match (blitz)"]
[TimeControl "180+3"]

1. d4 {[%emt 0:00:00]} d5 {[%emt 0:00:02]} 2. c4 {[%emt 0:00:01]} c6 {[%emt 0:
00:00]} 3. Nf3 {[%emt 0:00:02]} Nf6 {[%emt 0:00:01]} 4. Nc3 {[%emt 0:00:01]} a6
{[%emt 0:00:02]} 5. a4 {[%emt 0:00:04]} dxc4 {[%emt 0:00:03]} 6. a5 {[%emt 0:
00:16]} e6 {[%emt 0:00:05]} 7. e3 {[%emt 0:00:03]} c5 {[%emt 0:00:01]} 8. Bxc4
{[%emt 0:00:05]} Nc6 {[%emt 0:00:08]} 9. d5 {[%emt 0:00:27]} Nxa5 {[%emt 0:00:
23]} 10. Qa4+ {[%emt 0:00:04]} b5 {[%emt 0:00:01]} 11. Nxb5 {[%emt 0:00:43]}
axb5 {[%emt 0:00:05]} 12. Bxb5+ {[%emt 0:00:02]} Bd7 {[%emt 0:00:28]} 13. dxe6
{[%emt 0:00:02]} fxe6 {[%emt 0:00:33]} 14. Bd2 {[%emt 0:00:13]} Bd6 {[%emt 0:
00:47]} 15. Bxa5 {[%emt 0:00:11]} Bc7 {[%emt 0:00:04]} 16. Bxd7+ {[%emt 0:01:
05] .} Nxd7 {[%emt 0:00:32]} 17. O-O {[%emt 0:00:02]} Rxa5 {[%emt 0:00:02]} 18.
Qc6 {[%emt 0:00:08]} Ke7 {[%emt 0:00:29]} 19. Rad1 {[%emt 0:00:17]} Qc8 {[%emt
0:00:05]} 20. Ng5 {[%emt 0:00:08]} Nf6 {[%emt 0:00:01]} 21. g3 {[%emt 0:00:05]}
Ra6 {[%emt 0:00:03]} 22. Qb5 {[%emt 0:00:02]} h6 {[%emt 0:00:03]} 23. Nf3 {
[%emt 0:00:02]} Bd6 {[%emt 0:00:01]} 24. Nh4 {[%emt 0:00:03]} Kf7 {[%emt 0:00:
03]} 25. Qd3 {[%emt 0:00:02]} Rd8 {[%emt 0:00:06]} 26. Qc4 {[%emt 0:00:03]} Be7
{[%emt 0:00:04]} 27. Nf5 {[%emt 0:00:02]} Rxd1 {[%emt 0:00:02]} 28. Rxd1 {
[%emt 0:00:01]} Rc6 {[%emt 0:00:01]} 29. b3 {[%emt 0:00:07]} Bf8 {[%emt 0:00:
01]} 30. e4 {[%emt 0:00:02]} Kg8 {[%emt 0:00:01]} 31. e5 {[%emt 0:00:01]} Nd5 {
[%emt 0:00:03]} 32. f4 {[%emt 0:00:05]} Rb6 {[%emt 0:00:04]} 33. Rxd5 {[%emt 0:
00:09]} exd5 {[%emt 0:00:01]} 34. Qxd5+ {[%emt 0:00:01]} Qe6 {[%emt 0:00:00]
kingloek resigns  (Lag: Av=1.07s, max=5.9s)} 0-1

[Event "Dutch Internet Championship Final"]
[Site "playchess.com #038132"]
[Date "2011.06.18"]
[Round "4.5"]
[White "Jan Smeets"]
[Black "kingloek"]
[Result "0-1"]
[ECO "B90"]
[WhiteElo "2809"]
[BlackElo "2871"]
[PlyCount "66"]
[EventDate "2011.06.18"]
[EventType "match (blitz)"]
[TimeControl "180+3"]

1. e4 {[%emt 0:00:03]} c5 {[%emt 0:00:01]} 2. Nf3 {[%emt 0:00:00]} d6 {[%emt 0:
00:01]} 3. d4 {[%emt 0:00:00]} cxd4 {[%emt 0:00:01]} 4. Nxd4 {[%emt 0:00:00]}
Nf6 {[%emt 0:00:01]} 5. Nc3 {[%emt 0:00:00]} a6 {[%emt 0:00:01]} 6. Be3 {[%emt
0:00:02]} e5 {[%emt 0:00:02]} 7. Nf3 {[%emt 0:00:02]} Be7 {[%emt 0:00:02]} 8.
Bc4 {[%emt 0:00:02]} O-O {[%emt 0:00:01]} 9. a4 {[%emt 0:00:07]} Nc6 {[%emt 0:
00:03]} 10. O-O {[%emt 0:00:09]} Na5 {[%emt 0:00:04]} 11. Ba2 {[%emt 0:00:05]}
Be6 {[%emt 0:00:03]} 12. Qd3 {[%emt 0:00:10]} Rc8 {[%emt 0:00:06]} 13. Bxe6 {
[%emt 0:00:29]} fxe6 {[%emt 0:00:02]} 14. Rad1 {[%emt 0:00:00]} Qc7 {[%emt 0:
00:53]} 15. Bc1 {[%emt 0:00:17]} h6 {[%emt 0:00:09]} 16. Qe2 {[%emt 0:00:13]}
Qc4 {[%emt 0:00:05]} 17. Rd3 {[%emt 0:00:03]} b5 {[%emt 0:00:06]} 18. axb5 {
[%emt 0:00:07]} axb5 {[%emt 0:00:02]} 19. b3 {[%emt 0:00:25]} Qc5 {[%emt 0:00:
05]} 20. Ne1 {[%emt 0:00:37]} Nc6 {[%emt 0:00:07]} 21. Be3 {[%emt 0:00:09]} Nd4
{[%emt 0:00:10]} 22. Qd2 {[%emt 0:00:06]} b4 {[%emt 0:00:08]} 23. Na4 {[%emt 0:
00:17]} Nxe4 {[%emt 0:00:07]} 24. Nxc5 {[%emt 0:00:05]} Nxd2 {[%emt 0:00:01]}
25. Nxe6 {[%emt 0:00:19]} Nxf1 {[%emt 0:00:12]} 26. Nxf8 {[%emt 0:00:08]} Nxe3
{[%emt 0:00:08]} 27. fxe3 {[%emt 0:00:01]} Nxc2 {[%emt 0:00:02]} 28. Nxc2 {
[%emt 0:00:01]} Rxc2 {[%emt 0:00:02]} 29. Ng6 {[%emt 0:00:00]} Kf7 {[%emt 0:00:
04]} 30. Nxe7 {[%emt 0:00:10]} Kxe7 {[%emt 0:00:01]} 31. Kf1 {[%emt 0:00:03]}
Rc3 {[%emt 0:00:05]} 32. Rxc3 {[%emt 0:00:07]} bxc3 {[%emt 0:00:02]} 33. Ke2 {
[%emt 0:00:00]} d5 {[%emt 0:00:01] Jan Smeets resigns  (Lag: Av=0.56s, max=1.
3s)} 0-1

[Event "Dutch Internet Championship Final"]
[Site "playchess.com #038132"]
[Date "2011.06.18"]
[Round "4.6"]
[White "kingloek"]
[Black "Jan Smeets"]
[Result "0-1"]
[ECO "D15"]
[WhiteElo "2885"]
[BlackElo "2795"]
[PlyCount "98"]
[EventDate "2011.06.18"]
[EventType "match (blitz)"]
[TimeControl "180+3"]

1. d4 {[%emt 0:00:01]} d5 {[%emt 0:00:01]} 2. c4 {[%emt 0:00:01]} c6 {[%emt 0:
00:00]} 3. Nf3 {[%emt 0:00:01]} Nf6 {[%emt 0:00:00]} 4. Nc3 {[%emt 0:00:01]} a6
{[%emt 0:00:00]} 5. a4 {[%emt 0:00:02]} dxc4 {[%emt 0:00:01]} 6. g3 {[%emt 0:
00:14]} e6 {[%emt 0:00:09]} 7. Bg5 {[%emt 0:00:02]} c5 {[%emt 0:00:10]} 8. Bxf6
{[%emt 0:00:16]} Qxf6 {[%emt 0:00:10]} 9. d5 {[%emt 0:00:01]} Nd7 {[%emt 0:00:
22]} 10. Bg2 {[%emt 0:00:04]} Rb8 {[%emt 0:00:04]} 11. O-O {[%emt 0:00:28]} e5
{[%emt 0:00:18]} 12. a5 {[%emt 0:00:06]} Qd8 {[%emt 0:00:15]} 13. Qa4 {[%emt 0:
00:17]} b5 {[%emt 0:00:08]} 14. axb6 {[%emt 0:00:02]} Rxb6 {[%emt 0:00:00]} 15.
Qc2 {[%emt 0:00:22]} Be7 {[%emt 0:00:35]} 16. Nd2 {[%emt 0:00:04]} Rb4 {[%emt
0:00:01]} 17. Rfd1 {[%emt 0:00:29]} O-O {[%emt 0:00:13]} 18. Nce4 {[%emt 0:00:
07]} f5 {[%emt 0:00:12]} 19. d6 {[%emt 0:00:01]} fxe4 {[%emt 0:00:08]} 20. dxe7
{[%emt 0:00:02]} Qxe7 {[%emt 0:00:00]} 21. Nxe4 {[%emt 0:00:05]} Nf6 {[%emt 0:
00:03]} 22. Nd6 {[%emt 0:00:09]} Bg4 {[%emt 0:00:36]} 23. Rxa6 {[%emt 0:00:17]}
Rfb8 {[%emt 0:00:02]} 24. Nxc4 {[%emt 0:00:09]} Be6 {[%emt 0:00:07]} 25. Nxe5 {
[%emt 0:00:08]} Bb3 {[%emt 0:00:01]} 26. Nc6 {[%emt 0:00:12]} Bxc2 {[%emt 0:00:
09]} 27. Nxe7+ {[%emt 0:00:02]} Kf7 {[%emt 0:00:16]} 28. Rc1 {[%emt 0:00:03]}
Rxb2 {[%emt 0:00:01]} 29. Nc6 {[%emt 0:00:02]} Rb1 {[%emt 0:00:01]} 30. Ra1 {
[%emt 0:00:01]} Rxa1 {[%emt 0:00:02]} 31. Rxa1 {[%emt 0:00:01]} Rb2 {[%emt 0:
00:12]} 32. Rc1 {[%emt 0:00:22] .} Ke6 {[%emt 0:00:10]} 33. Na5 {[%emt 0:00:03]
} Ra2 {[%emt 0:00:04]} 34. Nc4 {[%emt 0:00:05]} Bb3 {[%emt 0:00:04]} 35. e3 {
[%emt 0:00:09]} Bxc4 {[%emt 0:00:07]} 36. Rxc4 {[%emt 0:00:02]} Ra1+ {[%emt 0:
00:02]} 37. Bf1 {[%emt 0:00:01]} Kd6 {[%emt 0:00:01]} 38. Kg2 {[%emt 0:00:02]}
Nd7 {[%emt 0:00:02]} 39. Rc2 {[%emt 0:00:02]} Nb6 {[%emt 0:00:02]} 40. f4 {
[%emt 0:00:02]} Nd5 {[%emt 0:00:02]} 41. Rd2 {[%emt 0:00:03]} Kc6 {[%emt 0:00:
01]} 42. Kf3 {[%emt 0:00:02]} Rxf1+ {[%emt 0:00:02]} 43. Ke4 {[%emt 0:00:01]}
Nc3+ {[%emt 0:00:03]} 44. Kd3 {[%emt 0:00:03]} Nb5 {[%emt 0:00:04]} 45. g4 {
[%emt 0:00:09]} Rc1 {[%emt 0:00:02]} 46. g5 {[%emt 0:00:05]} c4+ {[%emt 0:00:
01]} 47. Ke4 {[%emt 0:00:02]} c3 {[%emt 0:00:00]} 48. Rg2 {[%emt 0:00:01]} Re1
{[%emt 0:00:02]} 49. f5 {[%emt 0:00:08]} Nd6+ {[%emt 0:00:01] kingloek resigns
(Lag: Av=0.99s, max=8.1s)} 0-1